[Event "Early-Titled-Tuesday-Blitz-January-16-2024"]
[Site "Chess.com"]
[Date "2024.01.16"]
[Round "5"]
[White "viktorgen2021"]
[Black "Arystanner"]
[Result "0-1"]
[WhiteElo "2556"]
[BlackElo "2807"]
[TimeControl "180+1"]
[EndTime "8:58:44 PST"]
[Termination "Arystanner won by resignation"]

1. d4 {[%clk 0:02:55.2]} 1... Nf6 {[%clk 0:03:00.2]} 2. Nf3 {[%clk 0:02:51.9]}
2... e6 {[%clk 0:03:00.6]} 3. g3 {[%clk 0:02:44.4]} 3... d5 {[%clk 0:03:00.3]}
4. Bg2 {[%clk 0:02:44.6]} 4... Be7 {[%clk 0:03:01.2]} 5. c4 {[%clk 0:02:44.6]}
5... O-O {[%clk 0:03:02.1]} 6. O-O {[%clk 0:02:44.7]} 6... c6 {[%clk 0:03:02.7]}
7. Qc2 {[%clk 0:02:43.9]} 7... b6 {[%clk 0:03:02.9]} 8. Bf4 {[%clk 0:02:43.6]}
8... Nbd7 {[%clk 0:03:00.3]} 9. Rd1 {[%clk 0:02:40.8]} 9... Nh5 {[%clk
0:02:58.2]} 10. Nc3 {[%clk 0:02:38.2]} 10... Ba6 {[%clk 0:02:50.5]} 11. cxd5
{[%clk 0:02:30.4]} 11... cxd5 {[%clk 0:02:48.4]} 12. e4 {[%clk 0:02:26.7]} 12...
Nxf4 {[%clk 0:02:46.1]} 13. gxf4 {[%clk 0:02:18.1]} 13... dxe4 {[%clk
0:02:27.6]} 14. Nxe4 {[%clk 0:02:12]} 14... Rc8 {[%clk 0:02:27.6]} 15. Qd2
{[%clk 0:01:45.7]} 15... Nf6 {[%clk 0:02:24.1]} 16. Nxf6+ {[%clk 0:01:43.5]}
16... Bxf6 {[%clk 0:02:23.4]} 17. Ne5 {[%clk 0:01:44.1]} 17... Qd6 {[%clk
0:02:18.8]} 18. Rac1 {[%clk 0:01:30.7]} 18... g6 {[%clk 0:02:15.1]} 19. Qe3
{[%clk 0:01:00.8]} 19... Rfd8 {[%clk 0:02:01.4]} 20. Rxc8 {[%clk 0:00:48.6]}
20... Rxc8 {[%clk 0:02:01.3]} 21. d5 {[%clk 0:00:49.5]} 21... Rd8 {[%clk
0:01:01.4]} 22. Bf3 {[%clk 0:00:43.2]} 22... exd5 {[%clk 0:00:53.8]} 23. Rxd5
{[%clk 0:00:39]} 23... Qe7 {[%clk 0:00:51.3]} 24. Rxd8+ {[%clk 0:00:22.4]} 24...
Qxd8 {[%clk 0:00:51.5]} 25. Nc6 {[%clk 0:00:23]} 25... Qd7 {[%clk 0:00:37.8]}
26. Ne5 {[%clk 0:00:21.1]} 26... Qd6 {[%clk 0:00:31.9]} 27. b3 {[%clk
0:00:17.6]} 27... Kg7 {[%clk 0:00:31.7]} 28. Ng4 {[%clk 0:00:14.8]} 28... Bd4
{[%clk 0:00:30.5]} 29. Qc1 {[%clk 0:00:11.2]} 29... h5 {[%clk 0:00:25]} 30. Ne5
{[%clk 0:00:03.6]} 30... Bxe5 {[%clk 0:00:24.9]} 31. fxe5 {[%clk 0:00:04.5]}
31... Qxe5 {[%clk 0:00:25.7]} 32. Kg2 {[%clk 0:00:05.2]} 32... Bd3 {[%clk
0:00:21.9]} 33. h3 {[%clk 0:00:05.4]} 33... a5 {[%clk 0:00:20.2]} 34. a4 {[%clk
0:00:04.7]} 34... Bf5 {[%clk 0:00:19.3]} 35. Qd2 {[%clk 0:00:04.6]} 35... Be6
{[%clk 0:00:19.5]} 36. Qd3 {[%clk 0:00:04.5]} 36... Qf5 {[%clk 0:00:19]} 37.
Qxf5 {[%clk 0:00:03.9]} 37... Bxf5 {[%clk 0:00:19.2]} 38. Bd1 {[%clk 0:00:03.9]}
38... Kf6 {[%clk 0:00:19.2]} 39. Kg3 {[%clk 0:00:04.5]} 39... Ke5 {[%clk
0:00:18.7]} 40. h4 {[%clk 0:00:05]} 40... Kd4 {[%clk 0:00:18.6]} 41. Kf4 {[%clk
0:00:05.3]} 41... f6 {[%clk 0:00:18.8]} 42. f3 {[%clk 0:00:02.6]} 42... Kc3
{[%clk 0:00:19.2]} 43. Ke3 {[%clk 0:00:03.2]} 43... Be6 {[%clk 0:00:19.4]} 0-1

[Event "Early-Titled-Tuesday-Blitz-January-16-2024"]
[Site "Chess.com"]
[Date "2024.01.16"]
[Round "5"]
[White "Alenzer"]
[Black "Willi_Skibbe"]
[Result "0-1"]
[WhiteElo "2120"]
[BlackElo "2397"]
[TimeControl "180+1"]
[EndTime "8:58:44 PST"]
[Termination "Willi_Skibbe won on time"]

1. e4 {[%clk 0:02:51.3]} 1... e6 {[%clk 0:02:54]} 2. d4 {[%clk 0:02:50.8]} 2...
d5 {[%clk 0:02:53.7]} 3. exd5 {[%clk 0:02:50.8]} 3... exd5 {[%clk 0:02:54.6]} 4.
c4 {[%clk 0:02:50.6]} 4... Nf6 {[%clk 0:02:52.6]} 5. Nc3 {[%clk 0:02:50.2]} 5...
Bb4 {[%clk 0:02:50.4]} 6. Nf3 {[%clk 0:02:49.7]} 6... O-O {[%clk 0:02:44.4]} 7.
Bd3 {[%clk 0:02:49.1]} 7... Re8+ {[%clk 0:02:40.1]} 8. Be3 {[%clk 0:02:48.7]}
8... dxc4 {[%clk 0:02:18.9]} 9. Bxc4 {[%clk 0:02:48.4]} 9... Bg4 {[%clk
0:02:12.5]} 10. O-O {[%clk 0:02:45.7]} 10... Nc6 {[%clk 0:02:12]} 11. h3 {[%clk
0:02:22.2]} 11... Bh5 {[%clk 0:01:57.4]} 12. g4 {[%clk 0:02:14.8]} 12... Nxg4
{[%clk 0:01:20]} 13. hxg4 {[%clk 0:02:05.7]} 13... Bxg4 {[%clk 0:01:19.7]} 14.
Be2 {[%clk 0:01:26.4]} 14... Bd6 {[%clk 0:00:50.2]} 15. Ng5 {[%clk 0:01:17.1]}
15... Bxe2 {[%clk 0:00:17.2]} 16. Nxe2 {[%clk 0:01:00.5]} 16... Rxe3 {[%clk
0:00:12.5]} 17. fxe3 {[%clk 0:00:45.5]} 17... Qxg5+ {[%clk 0:00:12.2]} 18. Kf2
{[%clk 0:00:43]} 18... Qh4+ {[%clk 0:00:12.3]} 19. Kf3 {[%clk 0:00:33.9]} 19...
Re8 {[%clk 0:00:12]} 20. Nf4 {[%clk 0:00:29.1]} 20... Bxf4 {[%clk 0:00:06.5]}
21. exf4 {[%clk 0:00:25.8]} 21... Qh3+ {[%clk 0:00:06.4]} 22. Kf2 {[%clk
0:00:21.7]} 22... Qe3+ {[%clk 0:00:05.7]} 23. Kg2 {[%clk 0:00:20.8]} 23... Re6
{[%clk 0:00:06.3]} 24. Rf3 {[%clk 0:00:11.4]} 24... Rg6+ {[%clk 0:00:05.1]} 25.
Kh2 {[%clk 0:00:09.7]} 25... Qe4 {[%clk 0:00:03]} 26. Qd3 {[%clk 0:00:06.7]}
26... Rh6+ {[%clk 0:00:02.4]} 27. Kg3 {[%clk 0:00:06.6]} 27... Rg6+ {[%clk
0:00:02.8]} 28. Kf2 {[%clk 0:00:07.1]} 28... Qd5 {[%clk 0:00:02.8]} 29. b3
{[%clk 0:00:06.9]} 29... Nxd4 {[%clk 0:00:02.9]} 30. Rd1 {[%clk 0:00:06]} 30...
Rd6 {[%clk 0:00:01.2]} 31. Re3 {[%clk 0:00:05.4]} 31... f6 {[%clk 0:00:01.5]}
32. Re8+ {[%clk 0:00:05]} 32... Kf7 {[%clk 0:00:02.1]} 33. Re4 {[%clk
0:00:05.7]} 33... c5 {[%clk 0:00:02.7]} 34. b4 {[%clk 0:00:05.6]} 34... f5
{[%clk 0:00:03]} 35. Re5 {[%clk 0:00:02.6]} 35... Qxa2+ {[%clk 0:00:01.4]} 36.
Kg3 {[%clk 0:00:02.5]} 36... Rg6+ {[%clk 0:00:01.8]} 37. Kh4 {[%clk 0:00:01.2]}
37... Rh6+ {[%clk 0:00:02.7]} 0-1

[Event "Early-Titled-Tuesday-Blitz-January-16-2024"]
[Site "Chess.com"]
[Date "2024.01.16"]
[Round "5"]
[White "topce"]
[Black "whitemirrorninja"]
[Result "1-0"]
[WhiteElo "2380"]
[BlackElo "2485"]
[TimeControl "180+1"]
[EndTime "8:58:47 PST"]
[Termination "topce won by checkmate"]

1. c4 {[%clk 0:02:46.1]} 1... b6 {[%clk 0:02:57.8]} 2. d4 {[%clk 0:02:43.5]}
2... Bb7 {[%clk 0:02:58.2]} 3. a3 {[%clk 0:02:43]} 3... e6 {[%clk 0:02:57.4]} 4.
Nc3 {[%clk 0:02:42.5]} 4... f5 {[%clk 0:02:57]} 5. Nf3 {[%clk 0:02:34.7]} 5...
Nf6 {[%clk 0:02:57.3]} 6. g3 {[%clk 0:02:33.6]} 6... Be7 {[%clk 0:02:53]} 7. Bg2
{[%clk 0:02:33.2]} 7... Ne4 {[%clk 0:02:52.7]} 8. Nxe4 {[%clk 0:02:13.3]} 8...
Bxe4 {[%clk 0:02:53.6]} 9. O-O {[%clk 0:02:11.9]} 9... Bf6 {[%clk 0:02:48.8]}
10. b4 {[%clk 0:02:11.4]} 10... Nc6 {[%clk 0:02:47.6]} 11. Bb2 {[%clk 0:02:11]}
11... a5 {[%clk 0:02:43]} 12. b5 {[%clk 0:02:05.5]} 12... Ne7 {[%clk 0:02:43.7]}
13. e3 {[%clk 0:02:00.6]} 13... h5 {[%clk 0:02:39.6]} 14. h4 {[%clk 0:01:57.8]}
14... Ng6 {[%clk 0:02:39.2]} 15. Ne1 {[%clk 0:01:41.8]} 15... Bxg2 {[%clk
0:02:30.4]} 16. Nxg2 {[%clk 0:01:42.7]} 16... Ne7 {[%clk 0:02:24.1]} 17. Nf4
{[%clk 0:01:39.7]} 17... g5 {[%clk 0:02:12.1]} 18. hxg5 {[%clk 0:01:39.2]} 18...
Bxg5 {[%clk 0:02:10.8]} 19. Kg2 {[%clk 0:01:35.8]} 19... Bxf4 {[%clk 0:02:08.3]}
20. exf4 {[%clk 0:01:32.5]} 20... Ng6 {[%clk 0:02:02.5]} 21. d5 {[%clk 0:01:26]}
21... Rh7 {[%clk 0:01:52.3]} 22. Rh1 {[%clk 0:01:20.2]} 22... h4 {[%clk
0:01:49.8]} 23. Qf3 {[%clk 0:01:15.6]} 23... Kf7 {[%clk 0:01:38.4]} 24. Rae1
{[%clk 0:01:11.6]} 24... Qg8 {[%clk 0:01:37.4]} 25. dxe6+ {[%clk 0:00:51.1]}
25... dxe6 {[%clk 0:01:37.2]} 26. Rxe6 {[%clk 0:00:45.7]} 26... hxg3 {[%clk
0:01:15.3]} 27. Rf6+ {[%clk 0:00:37.9]} 27... Ke7 {[%clk 0:01:01.3]} 28. Re1+
{[%clk 0:00:34.8]} 28... Ne5 {[%clk 0:01:01.8]} 29. Rxe5+ {[%clk 0:00:33.9]}
29... Kxf6 {[%clk 0:01:02.1]} 30. Re8+ {[%clk 0:00:31.9]} 30... Kf7 {[%clk
0:01:00.9]} 31. Rxg8 {[%clk 0:00:26]} 31... Rxg8 {[%clk 0:01:01.3]} 32. fxg3
{[%clk 0:00:25.8]} 32... Rd8 {[%clk 0:00:56.9]} 33. Bc3 {[%clk 0:00:22.9]} 33...
Rh6 {[%clk 0:00:54.6]} 34. Qe3 {[%clk 0:00:19.3]} 34... Re6 {[%clk 0:00:53.9]}
35. Qf3 {[%clk 0:00:19.3]} 35... Re4 {[%clk 0:00:50.6]} 36. Qh5+ {[%clk
0:00:19.1]} 36... Ke7 {[%clk 0:00:42.4]} 37. Qxf5 {[%clk 0:00:14.3]} 37... Rxc4
{[%clk 0:00:39.8]} 38. Bf6+ {[%clk 0:00:14]} 38... Kd6 {[%clk 0:00:39.8]} 39.
Bxd8 {[%clk 0:00:12.8]} 39... Rc5 {[%clk 0:00:40.6]} 40. Qe4 {[%clk 0:00:09.1]}
40... Kd7 {[%clk 0:00:39.9]} 41. Qe7+ {[%clk 0:00:08]} 41... Kc8 {[%clk
0:00:40.6]} 42. Qe8 {[%clk 0:00:08.3]} 42... Kb7 {[%clk 0:00:37.3]} 43. a4
{[%clk 0:00:07.6]} 43... Rc4 {[%clk 0:00:35.8]} 44. f5 {[%clk 0:00:07.7]} 44...
Rxa4 {[%clk 0:00:35.6]} 45. f6 {[%clk 0:00:08]} 45... Ra2+ {[%clk 0:00:35.8]}
46. Kh3 {[%clk 0:00:07.9]} 46... a4 {[%clk 0:00:32.2]} 47. f7 {[%clk 0:00:08.8]}
47... a3 {[%clk 0:00:32.8]} 48. Qc6+ {[%clk 0:00:08.3]} 48... Ka7 {[%clk
0:00:26.1]} 49. Qxc7+ {[%clk 0:00:09.2]} 49... Ka8 {[%clk 0:00:26.7]} 50. f8=Q
{[%clk 0:00:08]} 50... Rf2 {[%clk 0:00:21.9]} 51. Bf6# {[%clk 0:00:07]} 1-0

[Event "Early-Titled-Tuesday-Blitz-January-16-2024"]
[Site "Chess.com"]
[Date "2024.01.16"]
[Round "5"]
[White "valik3504"]
[Black "krzyzan94"]
[Result "0-1"]
[WhiteElo "2558"]
[BlackElo "2811"]
[TimeControl "180+1"]
[EndTime "8:58:49 PST"]
[Termination "krzyzan94 won on time"]

1. Nf3 {[%clk 0:03:00.9]} 1... Nf6 {[%clk 0:02:59.2]} 2. c4 {[%clk 0:03:01.1]}
2... g6 {[%clk 0:02:57.8]} 3. Nc3 {[%clk 0:03:00.7]} 3... d6 {[%clk 0:02:56.5]}
4. d4 {[%clk 0:02:59.8]} 4... Bf5 {[%clk 0:02:56.5]} 5. d5 {[%clk 0:02:54]} 5...
Bg7 {[%clk 0:02:55.9]} 6. Nd4 {[%clk 0:02:54.3]} 6... Bd7 {[%clk 0:02:53.7]} 7.
e4 {[%clk 0:02:53.4]} 7... O-O {[%clk 0:02:52.4]} 8. Be2 {[%clk 0:02:46.6]} 8...
c5 {[%clk 0:02:50.8]} 9. Nf3 {[%clk 0:02:45.7]} 9... e5 {[%clk 0:02:48.9]} 10.
h3 {[%clk 0:02:41.6]} 10... Nh5 {[%clk 0:02:47]} 11. g3 {[%clk 0:02:13.3]} 11...
Kh8 {[%clk 0:02:43.1]} 12. Nd2 {[%clk 0:02:02.3]} 12... Nf6 {[%clk 0:02:40.6]}
13. Nf1 {[%clk 0:01:58.4]} 13... b5 {[%clk 0:02:30.9]} 14. cxb5 {[%clk
0:01:56.2]} 14... a6 {[%clk 0:02:31.4]} 15. bxa6 {[%clk 0:01:46]} 15... Nxa6
{[%clk 0:02:32.3]} 16. Ne3 {[%clk 0:01:37.9]} 16... Ne8 {[%clk 0:02:18.5]} 17.
g4 {[%clk 0:01:13.7]} 17... Bf6 {[%clk 0:02:16.5]} 18. Ng2 {[%clk 0:00:55.2]}
18... Bg5 {[%clk 0:02:16]} 19. Bxg5 {[%clk 0:00:52.8]} 19... Qxg5 {[%clk
0:02:16.9]} 20. h4 {[%clk 0:00:52.7]} 20... Qe7 {[%clk 0:02:00.6]} 21. h5 {[%clk
0:00:29.1]} 21... Kg8 {[%clk 0:01:30.4]} 22. Qd2 {[%clk 0:00:27.7]} 22... g5
{[%clk 0:01:08.4]} 23. Bxa6 {[%clk 0:00:26.5]} 23... Rxa6 {[%clk 0:01:07.7]} 24.
h6 {[%clk 0:00:24.4]} 24... Bxg4 {[%clk 0:01:05.8]} 25. Ne3 {[%clk 0:00:23.2]}
25... Bd7 {[%clk 0:00:58.3]} 26. O-O-O {[%clk 0:00:16.4]} 26... f6 {[%clk
0:00:58.3]} 27. Rdg1 {[%clk 0:00:16.4]} 27... Nc7 {[%clk 0:00:56.1]} 28. Ng4
{[%clk 0:00:16.7]} 28... Kh8 {[%clk 0:00:54.4]} 29. Rh5 {[%clk 0:00:10.4]} 29...
Be8 {[%clk 0:00:49.4]} 30. Nxf6 {[%clk 0:00:09.1]} 30... Qxf6 {[%clk 0:00:43.5]}
31. Rhxg5 {[%clk 0:00:09.5]} 31... Bg6 {[%clk 0:00:44.2]} 32. Nd1 {[%clk
0:00:05.7]} 32... Ra4 {[%clk 0:00:40.2]} 33. f3 {[%clk 0:00:05.7]} 33... Rd4
{[%clk 0:00:39.5]} 34. Qa5 {[%clk 0:00:04.2]} 34... Nxd5 {[%clk 0:00:38.7]} 35.
Qa7 {[%clk 0:00:02]} 35... Ne7 {[%clk 0:00:32.6]} 36. Ne3 {[%clk 0:00:01.3]}
36... Qf4 {[%clk 0:00:33.1]} 37. Kb1 {[%clk 0:00:01.3]} 37... Qxe3 {[%clk
0:00:30.7]} 38. Qxe7 {[%clk 0:00:02]} 38... Qd3+ {[%clk 0:00:31.1]} 39. Kc1
{[%clk 0:00:02.5]} 39... Qc4+ {[%clk 0:00:26.6]} 40. Kb1 {[%clk 0:00:02.9]}
40... Qf7 {[%clk 0:00:27.2]} 41. Qxf7 {[%clk 0:00:02.3]} 41... Rxf7 {[%clk
0:00:28.1]} 42. a3 {[%clk 0:00:02.4]} 42... Rxf3 {[%clk 0:00:27.9]} 43. Ka2
{[%clk 0:00:02.2]} 43... Rxe4 {[%clk 0:00:26.1]} 44. R1g2 {[%clk 0:00:02.6]}
44... Ref4 {[%clk 0:00:22.8]} 45. Rd2 {[%clk 0:00:02]} 45... Rd4 {[%clk
0:00:20.6]} 46. Re2 {[%clk 0:00:01.5]} 46... Bf7+ {[%clk 0:00:19]} 47. Kb1
{[%clk 0:00:01.5]} 47... Rd1+ {[%clk 0:00:18.5]} 0-1

[Event "Early-Titled-Tuesday-Blitz-January-16-2024"]
[Site "Chess.com"]
[Date "2024.01.16"]
[Round "5"]
[White "nickmatta"]
[Black "IngOscarArdila"]
[Result "1-0"]
[WhiteElo "2580"]
[BlackElo "2370"]
[TimeControl "180+1"]
[EndTime "8:58:50 PST"]
[Termination "nickmatta won on time"]

1. e4 {[%clk 0:03:00.9]} 1... e5 {[%clk 0:02:59.8]} 2. Nf3 {[%clk 0:03:01]} 2...
Nf6 {[%clk 0:03:00.4]} 3. Nxe5 {[%clk 0:02:57.3]} 3... d6 {[%clk 0:03:00.7]} 4.
Nf3 {[%clk 0:02:57.4]} 4... Nxe4 {[%clk 0:03:00.9]} 5. d4 {[%clk 0:02:53.1]}
5... Be7 {[%clk 0:03:00]} 6. Bd3 {[%clk 0:02:51.9]} 6... d5 {[%clk 0:03:00.1]}
7. O-O {[%clk 0:02:49.8]} 7... Nc6 {[%clk 0:03:00]} 8. c4 {[%clk 0:02:41.6]}
8... Nb4 {[%clk 0:02:58.7]} 9. Be2 {[%clk 0:02:41.5]} 9... O-O {[%clk
0:02:51.6]} 10. a3 {[%clk 0:02:40.3]} 10... Nc6 {[%clk 0:02:50.6]} 11. cxd5
{[%clk 0:02:39.9]} 11... Qxd5 {[%clk 0:02:50]} 12. Nc3 {[%clk 0:02:40.8]} 12...
Nxc3 {[%clk 0:02:49.7]} 13. bxc3 {[%clk 0:02:41.7]} 13... Bf5 {[%clk 0:02:46.7]}
14. c4 {[%clk 0:02:36.4]} 14... Qd7 {[%clk 0:02:41.3]} 15. d5 {[%clk 0:02:34.7]}
15... Na5 {[%clk 0:02:29.8]} 16. Nd4 {[%clk 0:02:32.4]} 16... Bg6 {[%clk
0:02:27.3]} 17. Bd2 {[%clk 0:02:28.5]} 17... b6 {[%clk 0:02:25.1]} 18. Bxa5
{[%clk 0:02:26.6]} 18... bxa5 {[%clk 0:02:25.2]} 19. Nc6 {[%clk 0:02:24.9]}
19... Bf6 {[%clk 0:02:21.3]} 20. Rc1 {[%clk 0:02:18.5]} 20... Qd6 {[%clk
0:02:09.8]} 21. c5 {[%clk 0:02:09.4]} 21... Qf4 {[%clk 0:02:08.4]} 22. Rc4
{[%clk 0:02:00.4]} 22... Qg5 {[%clk 0:01:57.5]} 23. d6 {[%clk 0:01:55.8]} 23...
cxd6 {[%clk 0:01:48]} 24. cxd6 {[%clk 0:01:56.7]} 24... Bf5 {[%clk 0:01:12.6]}
25. Rc5 {[%clk 0:01:45.7]} 25... Qf4 {[%clk 0:01:07.3]} 26. g3 {[%clk
0:01:36.6]} 26... Qe4 {[%clk 0:01:00.3]} 27. Bf3 {[%clk 0:01:36.3]} 27... Qe6
{[%clk 0:00:58.7]} 28. Nd4 {[%clk 0:01:28.3]} 28... Bxd4 {[%clk 0:00:55.2]} 29.
Qxd4 {[%clk 0:01:28.1]} 29... Rad8 {[%clk 0:00:54.7]} 30. Re5 {[%clk 0:01:04.8]}
30... Rxd6 {[%clk 0:00:53.9]} 31. Qf4 {[%clk 0:01:03.5]} 31... Qg6 {[%clk
0:00:24.5]} 32. Qxf5 {[%clk 0:01:00.7]} 32... Qxf5 {[%clk 0:00:24.2]} 33. Rxf5
{[%clk 0:01:01.6]} 33... a4 {[%clk 0:00:23.6]} 34. Ra5 {[%clk 0:01:01]} 34... a6
{[%clk 0:00:21.2]} 35. Rxa4 {[%clk 0:01:00.8]} 35... Rb8 {[%clk 0:00:21.4]} 36.
Rd1 {[%clk 0:00:58]} 36... Rdb6 {[%clk 0:00:20]} 37. Rad4 {[%clk 0:00:55.2]}
37... g5 {[%clk 0:00:18.3]} 38. Rd8+ {[%clk 0:00:54.9]} 38... Rxd8 {[%clk
0:00:18.2]} 39. Rxd8+ {[%clk 0:00:54.8]} 39... Kg7 {[%clk 0:00:19.1]} 40. Ra8
{[%clk 0:00:52.9]} 40... Kf6 {[%clk 0:00:17.8]} 41. a4 {[%clk 0:00:51.8]} 41...
Ke5 {[%clk 0:00:17.8]} 42. Ra7 {[%clk 0:00:50.2]} 42... f5 {[%clk 0:00:16.9]}
43. Rxh7 {[%clk 0:00:49.3]} 43... Rb4 {[%clk 0:00:17.1]} 44. Bc6 {[%clk
0:00:48.6]} 44... Kd6 {[%clk 0:00:16.2]} 45. Be8 {[%clk 0:00:46.5]} 45... g4
{[%clk 0:00:15.2]} 46. Ra7 {[%clk 0:00:45.2]} 46... a5 {[%clk 0:00:14.6]} 47.
Rxa5 {[%clk 0:00:45]} 47... Ke7 {[%clk 0:00:14.3]} 48. Bg6 {[%clk 0:00:44.6]}
48... Kf6 {[%clk 0:00:13.8]} 49. Bxf5 {[%clk 0:00:44.7]} 49... Rb1+ {[%clk
0:00:13.8]} 50. Kg2 {[%clk 0:00:45]} 50... Rb4 {[%clk 0:00:13.5]} 51. Bd3 {[%clk
0:00:44.4]} 51... Rd4 {[%clk 0:00:12.9]} 52. Bb5 {[%clk 0:00:44.2]} 52... Ke5
{[%clk 0:00:12.3]} 53. Ra6 {[%clk 0:00:45.1]} 53... Kd5 {[%clk 0:00:12.3]} 54.
Ra8 {[%clk 0:00:43.7]} 54... Kc5 {[%clk 0:00:13.2]} 55. Rf8 {[%clk 0:00:42.7]}
55... Rb4 {[%clk 0:00:12.6]} 56. Rf4 {[%clk 0:00:43]} 56... Rb2 {[%clk
0:00:12.3]} 57. Rxg4 {[%clk 0:00:43.5]} 57... Kd6 {[%clk 0:00:12.8]} 58. h4
{[%clk 0:00:44]} 58... Ke5 {[%clk 0:00:13.6]} 59. h5 {[%clk 0:00:44.6]} 59...
Kf6 {[%clk 0:00:14.3]} 60. h6 {[%clk 0:00:44.9]} 60... Rb1 {[%clk 0:00:15]} 61.
h7 {[%clk 0:00:44.6]} 1-0

[Event "Early-Titled-Tuesday-Blitz-January-16-2024"]
[Site "Chess.com"]
[Date "2024.01.16"]
[Round "5"]
[White "MetiForce"]
[Black "jefferyx"]
[Result "0-1"]
[WhiteElo "2866"]
[BlackElo "3031"]
[TimeControl "180+1"]
[EndTime "8:58:51 PST"]
[Termination "jefferyx won on time"]

1. d4 {[%clk 0:03:00.9]} 1... d5 {[%clk 0:03:00.1]} 2. c4 {[%clk 0:03:01.2]}
2... e6 {[%clk 0:03:00.7]} 3. Nc3 {[%clk 0:03:01.5]} 3... Nf6 {[%clk 0:03:00.6]}
4. cxd5 {[%clk 0:03:02.2]} 4... exd5 {[%clk 0:03:01.5]} 5. Bg5 {[%clk
0:03:02.5]} 5... c6 {[%clk 0:03:02.2]} 6. e3 {[%clk 0:03:03.2]} 6... Bd6 {[%clk
0:03:02.9]} 7. Bd3 {[%clk 0:03:02.3]} 7... O-O {[%clk 0:03:03.4]} 8. Nge2 {[%clk
0:03:02.3]} 8... Re8 {[%clk 0:03:03.4]} 9. h3 {[%clk 0:02:59.1]} 9... a5 {[%clk
0:03:03]} 10. O-O {[%clk 0:02:56.6]} 10... Na6 {[%clk 0:03:03.1]} 11. a3 {[%clk
0:02:51.4]} 11... Nc7 {[%clk 0:03:03.1]} 12. Qc2 {[%clk 0:02:51.3]} 12... h6
{[%clk 0:03:02.9]} 13. Bf4 {[%clk 0:02:47.2]} 13... Bxf4 {[%clk 0:02:48.8]} 14.
exf4 {[%clk 0:02:38.5]} 14... Qd6 {[%clk 0:02:49.7]} 15. Rfe1 {[%clk 0:02:32.9]}
15... Bd7 {[%clk 0:02:49.6]} 16. f5 {[%clk 0:02:14.8]} 16... b6 {[%clk
0:02:49.6]} 17. Rad1 {[%clk 0:02:12.5]} 17... c5 {[%clk 0:02:49]} 18. dxc5
{[%clk 0:01:44.7]} 18... bxc5 {[%clk 0:02:49.9]} 19. Ng3 {[%clk 0:01:42.9]}
19... Rxe1+ {[%clk 0:02:41.8]} 20. Rxe1 {[%clk 0:01:43.8]} 20... c4 {[%clk
0:02:40.1]} 21. Bf1 {[%clk 0:01:44]} 21... Rb8 {[%clk 0:02:39.8]} 22. Qd2 {[%clk
0:01:29.4]} 22... Qb6 {[%clk 0:02:32.7]} 23. Nd1 {[%clk 0:01:23.1]} 23... Nb5
{[%clk 0:02:18.6]} 24. Ne3 {[%clk 0:01:07.9]} 24... Nc7 {[%clk 0:01:46.7]} 25.
Nd1 {[%clk 0:01:06.9]} 25... Nce8 {[%clk 0:01:35.4]} 26. Qf4 {[%clk 0:00:40.3]}
26... Nd6 {[%clk 0:01:22.4]} 27. Be2 {[%clk 0:00:40.4]} 27... Re8 {[%clk
0:01:19.9]} 28. Rf1 {[%clk 0:00:34.1]} 28... Nxf5 {[%clk 0:01:10.5]} 29. Nxf5
{[%clk 0:00:32.9]} 29... Bxf5 {[%clk 0:01:06.4]} 30. Bxc4 {[%clk 0:00:32.6]}
30... Bxh3 {[%clk 0:01:04.8]} 31. Bd3 {[%clk 0:00:30]} 31... Be6 {[%clk
0:01:00.2]} 32. b4 {[%clk 0:00:27.7]} 32... axb4 {[%clk 0:00:59.9]} 33. axb4
{[%clk 0:00:27.8]} 33... d4 {[%clk 0:00:58.7]} 34. b5 {[%clk 0:00:26.3]} 34...
Rc8 {[%clk 0:00:55.8]} 35. Nb2 {[%clk 0:00:20.6]} 35... Qc5 {[%clk 0:00:50.9]}
36. Na4 {[%clk 0:00:15.9]} 36... Qa3 {[%clk 0:00:48.5]} 37. Qxd4 {[%clk
0:00:13.5]} 37... Nd5 {[%clk 0:00:40.4]} 38. Be4 {[%clk 0:00:12.2]} 38... Nf4
{[%clk 0:00:35.9]} 39. Re1 {[%clk 0:00:09.3]} 39... Qf8 {[%clk 0:00:19.4]} 40.
Nb6 {[%clk 0:00:08.5]} 40... Rd8 {[%clk 0:00:19.3]} 41. Qe5 {[%clk 0:00:04.8]}
41... Qb4 {[%clk 0:00:18.9]} 42. Rc1 {[%clk 0:00:02.7]} 42... Ne2+ {[%clk
0:00:19.1]} 43. Kh2 {[%clk 0:00:03]} 43... Nxc1 {[%clk 0:00:20]} 44. Bc6 {[%clk
0:00:03.3]} 44... Qh4+ {[%clk 0:00:16.5]} 45. Kg1 {[%clk 0:00:03.2]} 45... Rd1+
{[%clk 0:00:16.9]} 0-1